[Event "Titled Tuesday Blitz August 16 Late 2022"]
[White "Zou, Chen"]
[Black "Isajevsky, Anton"]
[WhiteFideId "8610959"]
[BlackFideId "4142500"]
[WhiteElo "2276"]
[BlackElo "2510"]
[Result "1-0"]
[Round "11"]
[TimeControl "180+1"]
[Date "2022.08.16"]
[WhiteClock "0:00:07"]
[BlackClock "0:00:03"]

1. d4 {[%clk 0:03:00]}  d5 {[%clk 0:02:59]} 2. c4 {[%clk 0:03:01]}  e6 {[%clk 0:02:59]} 3. Nf3 {[%clk 0:03:00]}  Nf6 {[%clk 0:02:59]} 4. Nc3 {[%clk 0:03:00]}  Be7 {[%clk 0:02:59]} 5. Bf4 {[%clk 0:02:59]}  O-O {[%clk 0:02:58]} 6. e3 {[%clk 0:02:58]}  Nbd7 {[%clk 0:02:59]} 7. c5 {[%clk 0:02:57]}  c6 {[%clk 0:02:56]} 8. Bd3 {[%clk 0:02:55]}  b6 {[%clk 0:02:56]} 9. b4 {[%clk 0:02:54]}  bxc5 {[%clk 0:02:37]} 10. bxc5 {[%clk 0:02:54]}  Nh5 {[%clk 0:02:37]} 11. Be5 {[%clk 0:02:49]}  Qa5 {[%clk 0:02:35]} 12. Rc1 {[%clk 0:02:45]}  Ba6 {[%clk 0:02:27]} 13. O-O {[%clk 0:02:42]}  g6 {[%clk 0:02:06]} 14. h3 {[%clk 0:02:19]}  Nxe5 {[%clk 0:01:55]} 15. Nxe5 {[%clk 0:02:20]}  Rac8 {[%clk 0:01:43]} 16. Bxa6 {[%clk 0:02:01]}  Qxa6 {[%clk 0:01:41]} 17. Qa4 {[%clk 0:02:02]}  Qxa4 {[%clk 0:01:38]} 18. Nxa4 {[%clk 0:02:03]}  f6 {[%clk 0:01:38]} 19. Nd3 {[%clk 0:01:55]}  Bd8 {[%clk 0:00:57]} 20. Rb1 {[%clk 0:01:49]}  Rf7 {[%clk 0:00:57]} 21. Rb3 {[%clk 0:01:38]}  Ba5 {[%clk 0:00:47]} 22. Rfb1 {[%clk 0:01:34]}  Rfc7 {[%clk 0:00:47]} 23. g4 {[%clk 0:01:25]}  Ng7 {[%clk 0:00:45]} 24. f4 {[%clk 0:01:26]}  Kf7 {[%clk 0:00:34]} 25. Kg2 {[%clk 0:01:25]}  h6 {[%clk 0:00:23]} 26. Kf3 {[%clk 0:01:24]}  g5 {[%clk 0:00:23]} 27. Rb7 {[%clk 0:01:04]}  Ne8 {[%clk 0:00:20]} 28. R7b3 {[%clk 0:01:01]}  Rd7 {[%clk 0:00:16]} 29. a3 {[%clk 0:00:56]}  Ke7 {[%clk 0:00:16]} 30. Nc3 {[%clk 0:00:56]}  Bxc3 {[%clk 0:00:14]} 31. Rxc3 {[%clk 0:00:57]}  Nc7 {[%clk 0:00:15]} 32. a4 {[%clk 0:00:56]}  Na6 {[%clk 0:00:14]} 33. Rcb3 {[%clk 0:00:56]}  Rdd8 {[%clk 0:00:14]} 34. Rb7+ {[%clk 0:00:52]}  Rd7 {[%clk 0:00:13]} 35. R7b2 {[%clk 0:00:50]}  Rdd8 {[%clk 0:00:13]} 36. Kg3 {[%clk 0:00:50]}  Rb8 {[%clk 0:00:13]} 37. Rb7+ {[%clk 0:00:48]}  Rxb7 {[%clk 0:00:13]} 38. Rxb7+ {[%clk 0:00:48]}  Rd7 {[%clk 0:00:14]} 39. Rb3 {[%clk 0:00:47]}  Rd8 {[%clk 0:00:14]} 40. h4 {[%clk 0:00:47]}  Rb8 {[%clk 0:00:13]} 41. Rxb8 {[%clk 0:00:44]}  Nxb8 {[%clk 0:00:14]} 42. Nb4 {[%clk 0:00:39]}  a5 {[%clk 0:00:13]} 43. Nd3 {[%clk 0:00:31]}  Na6 {[%clk 0:00:14]} 44. Nc1 {[%clk 0:00:31]}  Nb4 {[%clk 0:00:12]} 45. Nb3 {[%clk 0:00:31]}  Kd7 {[%clk 0:00:07]} 46. Nxa5 {[%clk 0:00:31]}  gxh4+ {[%clk 0:00:04]} 47. Kxh4 {[%clk 0:00:31]}  Nc2 {[%clk 0:00:05]} 48. Kh5 {[%clk 0:00:24]}  Nxe3 {[%clk 0:00:05]} 49. Nb3 {[%clk 0:00:21]}  Kc7 {[%clk 0:00:03]} 50. Na5 {[%clk 0:00:12]}  Kd7 {[%clk 0:00:02]} 51. Nb7 {[%clk 0:00:12]}  Kc7 {[%clk 0:00:01]} 52. Nd6 {[%clk 0:00:13]}  Nc2 {[%clk 0:00:01]} 53. Kxh6 {[%clk 0:00:12]}  Nxd4 {[%clk 0:00:02]} 54. g5 {[%clk 0:00:12]}  fxg5 {[%clk 0:00:02]} 55. fxg5 {[%clk 0:00:13]}  e5 {[%clk 0:00:02]} 56. g6 {[%clk 0:00:13]}  Ne6 {[%clk 0:00:02]} 57. g7 {[%clk 0:00:06]}  Nxg7 {[%clk 0:00:03]} 58. Kxg7 {[%clk 0:00:07]}  d4 {[%clk 0:00:02]} 59. Kf6 {[%clk 0:00:05]}  d3 {[%clk 0:00:01]} 60. Ne4 {[%clk 0:00:05]}  Kb7 {[%clk 0:00:01]} 61. Kxe5 {[%clk 0:00:05]}  Ka6 {[%clk 0:00:02]} 62. Kd4 {[%clk 0:00:05]}  Ka5 {[%clk 0:00:02]} 63. Kxd3 {[%clk 0:00:05]}  Kxa4 {[%clk 0:00:03]} 64. Kc4 {[%clk 0:00:06]}  Ka5 {[%clk 0:00:03]} 65. Nf6 {[%clk 0:00:07]} 1-0